bitfinex/quotes_SOLUSD_20241220
["timestamp","ask_amount","ask_price","bid_price","bid_amount"]
[1734682737002,40.87026491,186.6,186.53,39.86523792]
[1734682738904,39.86523792,186.58,186.49,39.86523792]
[1734682739100,39.86523792,186.58,186.5,23.776884]
[1734682739300,1.00502032,186.57,186.5,23.776884]
[1734682739705,39.86523792,186.58,186.5,23.776884]
[1734682740110,1.00507493,186.57,186.5,23.776884]
[1734682740317,39.86523792,186.58,186.51,39.86523792]
[1734682740500,1.00504299,186.57,186.49,39.86523792]
[1734682740707,39.86523792,186.54,186.47,39.86523792]
[1734682740894,39.86523792,186.5,186.43,39.86523792]
[1734682741214,39.86523792,186.48,186.41,39.86531338]
[1734682741394,1.00568334,186.47,186.41,39.86531338]
[1734682741830,1.00568334,186.47,186.41,7.546e-05]
[1734682741831,39.86523792,186.46,186.41,7.546e-05]
[1734682741992,1.00579817,186.45,186.41,7.546e-05]
[1734682742493,39.86523792,186.42,186.41,7.546e-05]
[1734682742707,50.59363792,186.42,186.41,7.546e-05]
[1734682743517,50.59363792,186.42,186.37,0.06467546]
[1734682743518,50.59363792,186.42,186.31,39.86523792]
[1734682743710,1.00605646,186.41,186.4,4.546e-05]
[1734682743915,20.0,186.38,186.37,5.46e-05]
[1734682744109,21.00637092,186.38,186.37,5.46e-05]
[1734682744315,20.0,186.37,186.24,39.86523792]
[1734682744619,39.86523792,186.31,186.24,39.86523792]
[1734682744826,39.86523792,186.29,186.22,0.06467546]
[1734682745007,1.00665031,186.28,186.22,0.06467546]
[1734682746317,39.86523792,186.31,186.23,39.86523792]
[1734682746515,10.7345,186.32,186.25,39.86523792]
[1734682746715,1.00646124,186.36,186.3,39.86523792]
[1734682746917,3.64476874,186.35,186.3,39.86523792]
[1734682747243,1.00617356,186.34,186.28,39.86523792]
[1734682747528,39.86523792,186.33,186.26,39.86523792]
[1734682747702,39.86523792,186.35,186.26,39.86523792]
[1734682748028,39.86523792,186.37,186.3,39.86523792]
[1734682748202,1.00619553,186.36,186.28,39.86523792]
[1734682748606,39.86523792,186.37,186.3,39.86523792]
[1734682748903,39.86523792,186.39,186.3,39.86523792]
[1734682749104,39.86523792,186.41,186.34,39.86523792]
[1734682749317,39.86523792,186.47,186.4,39.86523792]
[1734682749496,39.86523792,186.41,186.22,8.60037546]
[1734682749709,39.86523792,186.38,186.28,39.86523792]
[1734682749902,1.00623797,186.37,186.28,39.86523792]
[1734682750100,39.86523792,186.34,186.26,39.86523792]
[1734682750310,1.00644843,186.33,186.26,39.86523792]
[1734682750525,1.00643514,186.33,186.26,39.86523792]
[1734682750901,39.86523792,186.3,186.22,48.46561338]
[1734682751125,39.86523792,186.34,186.26,39.86523792]
[1734682751732,39.86523792,186.36,186.28,39.86523792]
[1734682751936,1.00624646,186.35,186.28,39.86523792]
[1734682752239,39.86523792,186.32,186.24,39.86523792]
[1734682752411,1.00663399,186.31,186.22,42.08081338]
[1734682752917,1.00663399,186.31,186.24,39.86523792]
[1734682753318,39.86523792,186.34,186.26,39.86523792]
[1734682753528,39.86523792,186.36,186.28,39.86523792]
[1734682753711,1.00624333,186.35,186.29,23.776884]
[1734682753911,39.86523792,186.32,186.24,39.86523792]
[1734682754107,1.00652012,186.31,186.24,39.86523792]
[1734682754306,39.86523792,186.3,186.22,0.06467546]
[1734682754530,39.86523792,186.24,186.22,0.06467546]
[1734682754711,1.00691659,186.23,186.22,0.06467546]
[1734682754917,39.86523792,186.26,186.22,0.06467546]
[1734682755116,39.86523792,186.28,186.22,0.06467546]
[1734682755310,42.01302292,186.28,186.22,0.06467546]
[1734682755623,1.00670486,186.27,186.22,0.06467546]
[1734682755813,39.86523792,186.26,186.22,0.06467546]
[1734682756012,1.00685316,186.25,186.22,0.06467546]
[1734682756230,39.86523792,186.26,186.22,0.06467546]
[1734682756610,1.0067508,186.25,186.22,0.06467546]
[1734682756846,39.86523792,186.24,186.22,0.06467546]
[1734682757016,1.00703361,186.23,186.22,0.06467546]
[1734682757759,40.8721689,186.24,186.22,0.06467546]
[1734682758110,20.0,186.22,186.17,11.3381402]
[1734682758313,50.60743792,186.18,186.17,11.37888811]
[1734682758509,40.87270534,186.18,186.17,11.37888811]
[1734682759418,39.86523792,186.18,186.17,11.37888811]
[1734682760341,39.86523792,186.18,186.16,0.04074791]
[1734682760342,39.86523792,186.18,186.16,8.332e-05]
[1734682760511,11.75043208,186.17,186.16,8.332e-05]
[1734682761217,1.00763208,186.17,186.16,8.332e-05]
[1734682762534,10.41815187,186.17,186.16,8.332e-05]
[1734682762747,99.73047584,186.13,186.12,3.191e-05]
[1734682763036,7.82722284,186.12,186.03,1.58154874]
[1734682763336,39.86523792,186.04,186.03,1.58154874]
[1734682764330,30.7526,186.0,185.99,0.05707596]
[1734682764636,60.87387387,186.0,185.99,0.05707596]
[1734682764942,60.87387387,186.0,185.99,1.01581808]
[1734682765110,60.87387387,186.0,185.95,1.01581808]
[1734682765111,77.86298983,186.0,185.92,0.11572028]
[1734682765313,77.86298983,186.0,185.89,0.21942287]
[1734682765314,20.0,185.9,185.89,0.21942287]
[1734682765508,60.87436696,185.9,185.89,0.21942287]
[1734682765948,60.87436696,185.9,185.89,2.287e-05]
[1734682766112,60.87436696,185.9,185.85,0.21942287]
[1734682766113,106.97612084,185.9,185.85,0.10268991]
[1734682766314,20.0,185.84,185.77,0.11214088]
[1734682766559,20.0,185.84,185.83,0.07189192]
[1734682766859,6.23651596,185.89,185.83,0.07189192]
[1734682767042,3.28636893,185.9,185.83,0.07189192]
[1734682767428,2.0599,186.09,185.83,2.26779192]
[1734682767748,3.22917816,185.99,185.83,2.26779192]
[1734682767951,24.49078388,186.08,185.9,39.86523792]
[1734682767952,39.86523792,186.0,185.9,39.86523792]
[1734682768237,39.86523792,185.96,185.87,23.776884]
[1734682768450,3.26956713,186.0,185.91,23.776884]
[1734682768735,1.00836109,185.99,185.91,23.776884]
[1734682768940,39.86523792,185.98,185.91,23.776884]
[1734682769238,39.86523792,185.92,185.83,2.26779192]
[1734682769450,39.86523792,185.87,185.83,0.07189192]
[1734682769733,1.00898589,185.86,185.83,0.07189192]
[1734682769932,39.86523792,185.87,185.83,0.07189192]
[1734682770261,40.87414216,185.93,185.83,39.93712984]
[1734682770953,1.00890424,185.93,185.86,23.776884]
[1734682771150,1.00860934,185.94,185.86,23.776884]
[1734682772155,39.86523792,185.93,185.85,39.86523792]
[1734682772452,1.00862472,185.92,185.89,39.86523792]
[1734682772658,1.00845855,185.96,185.91,39.86523792]
[1734682772948,21.512319,186.03,185.96,23.776884]
[1734682773126,1.00807116,186.02,185.98,23.776884]
[1734682773450,1.00809999,186.04,185.98,23.776884]
[1734682773656,1.00795048,186.07,186.0,23.776884]
[1734682774158,1.00784986,186.11,186.05,39.86523792]
[1734682774317,1.00784986,186.11,186.06,23.776884]
[1734682774720,1.00784986,186.11,185.92,2.0966]
[1734682774912,39.86523792,186.03,185.92,41.96183792]
[1734682775143,39.86523792,186.01,185.92,41.96183792]
[1734682775362,1.00828901,186.0,185.92,41.96183792]
[1734682775565,39.86523792,186.03,185.94,39.86523792]
[1734682775856,39.86523792,186.07,185.98,39.86523792]
[1734682776045,1.0080357,186.06,185.98,39.86523792]
[1734682776416,39.86523792,186.1,186.0,39.86523792]
[1734682776651,39.86523792,186.08,186.0,39.86523792]
[1734682776857,1.00794523,186.07,186.0,39.86523792]
[1734682777156,1.00794838,186.07,186.01,23.776884]
[1734682777326,1.00791335,186.09,186.0,39.86523792]
[1734682777524,39.86523792,186.08,186.0,39.86523792]
[1734682777844,1.0079872,186.07,186.0,39.86523792]
[1734682778015,3.24764009,186.12,186.04,39.86523792]
[1734682778363,1.00772042,186.13,186.08,39.86523792]
[1734682778658,1.0075036,186.15,186.08,39.86523792]
[1734682779018,39.86523792,186.18,186.1,39.86523792]
[1734682779322,1.00730689,186.17,186.12,39.86523792]
[1734682779660,1.00730689,186.17,186.1,39.86523792]
[1734682779940,1.00734496,186.19,186.1,39.86523792]
[1734682780128,1.00746542,186.18,186.1,39.86523792]
[1734682780542,1.00746542,186.18,186.12,39.86523792]
[1734682780754,40.87270334,186.18,186.04,20.0]
[1734682780963,39.86523792,186.16,186.08,39.86523792]
[1734682781163,1.00759951,186.15,186.06,39.86523792]
[1734682781369,1.00759951,186.15,186.08,39.86523792]
[1734682782460,1.0075653,186.14,186.08,39.86523792]
[1734682783123,39.86523792,186.1,186.07,0.04384064]
[1734682783322,1.00788086,186.09,186.07,0.04384064]
[1734682783858,39.86523792,186.08,186.07,0.04384064]
[1734682784325,40.87322305,186.08,186.07,0.04384064]
[1734682784524,39.86523792,186.1,186.07,0.04384064]
[1734682784783,1.0078734,186.09,186.07,0.04384064]
[1734682785425,39.86523792,186.08,186.07,0.04384064]
[1734682786022,43.49196668,186.08,186.07,0.04384064]
[1734682786260,3.62672876,186.08,186.07,0.04384064]
[1734682786428,43.49196668,186.08,186.07,0.04384064]
[1734682786625,39.86523792,186.08,186.07,0.04384064]
[1734682786822,1.00780031,186.09,186.07,0.04384064]
[1734682787456,1.00770201,186.15,186.08,39.86523792]
[1734682787631,1.00770201,186.15,186.12,39.86523792]
[1734682787836,1.0073634,186.19,186.12,39.86523792]
[1734682788061,1.00724778,186.2,186.08,2.2656]
[1734682788237,1.00711696,186.23,186.18,39.86523792]
[1734682788443,1.00696986,186.26,186.22,39.86523792]
[1734682788650,1.00684586,186.29,186.22,39.86523792]
[1734682789051,1.00684586,186.29,186.24,39.86523792]
[1734682789237,4.64946292,186.28,186.24,39.86523792]
[1734682789437,44.51470084,186.28,186.2,39.86523792]
[1734682789635,39.86523792,186.22,186.14,39.86523792]
[1734682789865,1.00737224,186.21,186.12,39.86523792]
[1734682790231,39.86523792,186.18,186.1,39.86523792]
[1734682790572,10.46563146,186.21,186.08,39.86523792]
[1734682790573,39.86523792,186.16,186.08,39.86523792]
[1734682790770,39.86523792,186.14,186.07,0.04384064]
[1734682790958,39.86523792,186.12,186.07,0.04384064]
[1734682791276,39.86523792,186.08,186.07,0.04384064]
[1734682791440,40.8734085,186.08,186.07,0.04384064]
[1734682791836,50.32809894,186.08,186.07,0.04384064]
[1734682792065,50.32809894,186.08,186.07,4.064e-05]
[1734682793447,9.45469044,186.08,186.07,4.064e-05]
[1734682794074,49.31992836,186.08,186.07,4.064e-05]
[1734682794284,10.7486,186.07,186.06,0.3508064]
[1734682794456,11.75692693,186.07,186.06,0.3508064]
[1734682794642,11.75692693,186.07,186.06,6.4e-06]
[1734682795174,20.0,186.04,186.0,0.28051288]
[1734682795364,1.00818013,186.03,186.0,0.28051288]
[1734682795754,9.45469044,186.02,186.0,0.28051288]
[1734682795951,1.00832696,186.01,186.0,0.28051288]
[1734682796392,10.4630174,186.01,186.0,0.28051288]
[1734682798286,10.4630174,186.01,186.0,1.288e-05]
[1734682799252,10.46286919,186.01,186.0,1.288e-05]
[1734682799458,9.45469044,186.01,186.0,1.288e-05]
[1734682799693,3.63779201,186.01,186.0,1.288e-05]
[1734682799903,4.64597663,186.01,186.0,1.288e-05]
[1734682800678,9.48625498,186.01,186.0,1.288e-05]
[1734682800994,10.4945468,186.01,186.0,1.288e-05]
[1734682801196,10.7526,186.0,185.87,39.86523792]
[1734682801361,39.86523792,185.97,185.89,39.86523792]
[1734682801570,1.00847898,185.96,185.89,39.86523792]
[1734682802094,1.00847898,185.96,185.91,39.86523792]
[1734682802292,1.00861604,186.02,185.95,39.86523792]
[1734682802503,1.00861604,186.02,185.93,39.86523792]
[1734682802667,39.86523792,185.99,185.89,39.86523792]
[1734682802863,4.66654058,185.98,185.82,8.3622]
[1734682803106,4.66654058,185.98,185.82,2.1009]
[1734682803261,4.66654058,185.98,185.77,0.11214088]
[1734682803463,23.776884,185.96,185.77,0.11214088]
[1734682803678,20.0,185.89,185.77,0.11214088]
[1734682803882,1.00911937,185.88,185.77,0.11214088]
[1734682804082,39.86523792,185.84,185.77,0.11214088]
[1734682804306,39.86523792,185.82,185.77,0.11214088]
[1734682804505,1.00949617,185.81,185.77,0.11214088]
[1734682804713,39.86523792,185.8,185.77,0.11214088]
[1734682804916,1.00954529,185.79,185.77,0.11214088]
[1734682805113,1.00934199,185.8,185.77,0.11214088]
[1734682805319,1.00919114,185.8,185.77,0.11214088]
[1734682805613,1.00933395,185.83,185.77,0.11214088]
[1734682806819,1.00933395,185.83,185.77,39.9773788]
[1734682806996,1.00897175,185.91,185.81,39.86523792]
[1734682807363,39.86523792,186.0,185.89,39.86523792]
[1734682807629,3.65112497,185.9,185.85,39.86523792]
[1734682807914,39.86523792,186.05,185.86,23.776884]
[1734682808117,39.86523792,185.99,185.92,39.86523792]
[1734682808420,39.86523792,185.95,185.86,39.86523792]
[1734682808710,1.00884643,185.94,185.86,39.86523792]
[1734682808923,1.00884643,185.94,185.85,39.86523792]
[1734682809081,39.86523792,186.01,185.92,39.86523792]
[1734682809415,1.00833898,186.0,185.94,39.86523792]
[1734682809627,39.86523792,185.99,185.89,39.86523792]
[1734682809792,1.00842132,185.98,185.93,39.86523792]
[1734682809993,39.86523792,186.07,185.97,39.86523792]
[1734682810193,1.00800937,186.06,185.99,39.86523792]
[1734682810505,1.00800937,186.06,185.86,23.902374]
[1734682810506,39.86523792,186.05,185.97,39.86523792]
[1734682810710,39.86523792,186.09,186.01,39.86523792]
[1734682810886,1.00784014,186.08,186.01,39.86523792]
[1734682811733,39.86523792,186.05,185.97,39.86523792]
[1734682811894,1.00809808,186.04,185.97,39.86523792]
[1734682812095,39.86523792,186.07,185.99,39.86523792]
[1734682812409,1.00813026,186.06,185.97,39.86523792]
[1734682812603,1.00813026,186.06,186.01,39.86523792]
[1734682812802,1.00785958,186.08,186.01,39.86523792]
[1734682813008,1.00785958,186.08,185.99,39.86523792]
[1734682813512,39.86523792,186.03,185.95,39.86523792]
[1734682813718,39.86523792,186.05,185.97,39.86523792]
[1734682813906,1.00801489,186.04,185.99,39.86523792]
[1734682814305,1.00797232,186.06,185.99,39.86523792]
[1734682814513,39.86523792,186.08,185.99,39.86523792]
[1734682814723,1.00790372,186.07,185.99,39.86523792]
[1734682814924,1.00790372,186.07,185.95,23.776884]
[1734682815132,1.00790372,186.07,185.99,39.86523792]
[1734682815512,39.86523792,186.06,185.97,39.86523792]
[1734682815714,1.0080945,186.05,185.97,39.86523792]
[1734682815908,1.00795565,186.11,186.04,39.86523792]
[1734682816232,39.86523792,186.18,186.1,39.86523792]
[1734682816433,39.86523792,186.16,186.08,39.86523792]
[1734682816634,1.00746277,186.17,186.08,39.86523792]
[1734682816635,39.86523792,186.14,186.08,39.86523792]
[1734682816800,39.86523792,186.12,186.04,39.86523792]
[1734682817000,1.00775498,186.11,186.04,39.86523792]
[1734682817432,39.86523792,186.1,186.03,6.2169]
[1734682817607,1.00778347,186.09,186.03,6.2169]
[1734682817801,39.86523792,186.14,186.06,39.86523792]
[1734682818002,39.86523792,186.18,186.1,39.86523792]
[1734682818305,1.00737604,186.17,186.1,39.86523792]
[1734682818501,39.86523792,186.14,186.04,23.776884]
[1734682818700,39.86523792,186.1,186.02,39.86523792]
[1734682818904,39.86523792,186.06,185.96,39.86523792]
[1734682819138,39.86523792,186.12,185.9,39.86523792]
[1734682819139,39.86523792,185.98,185.9,39.86523792]
[1734682819324,39.86523792,185.96,185.88,6.377]
[1734682819640,39.86523792,185.94,185.87,39.86523792]
[1734682819863,39.86523792,185.98,185.89,39.86523792]
[1734682820020,39.86523792,185.96,185.87,39.86523792]
[1734682820342,1.00864077,185.95,185.87,39.86523792]
[1734682820547,39.86523792,185.92,185.83,39.86523792]
[1734682820842,39.86523792,185.9,185.81,39.86523792]
[1734682821042,39.86523792,185.88,185.79,39.86523792]
[1734682821202,1.00906062,185.87,185.79,39.86523792]
[1734682821612,1.00902786,185.87,185.81,39.86523792]
[1734682822330,1.00898407,185.89,185.81,39.86523792]
[1734682822640,1.00898407,185.89,185.76,39.86523792]
[1734682822641,1.00898407,185.89,185.83,39.86523792]
[1734682823139,1.00888453,185.88,185.83,39.86523792]
[1734682823339,40.87412245,185.88,185.79,39.86523792]
[1734682823513,39.86523792,185.86,185.77,46.1580788]
[1734682823711,39.86523792,185.81,185.77,0.11214088]
[1734682823912,1.00940853,185.8,185.77,0.11214088]
[1734682824522,39.86523792,185.79,185.77,0.11214088]
[1734682824830,1.00964097,185.78,185.77,0.11214088]
[1734682825020,20.0,185.76,185.71,0.25551948]
[1734682825202,39.86523792,185.72,185.71,0.25551948]
[1734682825806,39.86523792,185.74,185.71,0.25551948]
[1734682826038,1.00971943,185.73,185.71,0.25551948]
[1734682826474,1.00971027,185.75,185.71,0.25551948]
[1734682827068,39.86523792,185.78,185.71,0.25551948]
[1734682827069,1.00960237,185.77,185.71,0.25551948]
[1734682827271,1.00940569,185.76,185.71,0.25551948]
[1734682827439,39.86523792,185.74,185.71,0.25551948]
[1734682827645,39.86523792,185.72,185.71,0.25551948]
[1734682828148,39.86523792,185.74,185.71,0.25551948]
[1734682828346,1.00972819,185.73,185.71,0.25551948]
[1734682828748,1.00965285,185.75,185.71,0.25551948]
[1734682829269,39.86523792,185.74,185.71,0.25551948]
[1734682829466,1.00987589,185.73,185.71,0.25551948]
[1734682829654,39.86523792,185.72,185.71,0.25551948]
[1734682830054,39.86523792,185.76,185.71,0.25551948]
[1734682830265,1.00954844,185.75,185.71,0.25551948]
[1734682830663,39.86523792,185.76,185.71,0.25551948]
[1734682830864,39.86523792,185.72,185.71,1.948e-05]
[1734682831171,1.00979352,185.75,185.58,39.86523792]
[1734682831371,39.86523792,185.67,185.54,6.5521]
[1734682831564,39.86523792,185.65,185.58,39.86523792]
[1734682831769,6.1996,185.43,185.26,130.05676831]
[1734682832082,30.0,185.26,185.16,26.76329822]
[1734682832250,270.64680487,185.17,185.14,51.25834764]
[1734682832572,30.0,185.09,185.03,162.57096039]
[1734682832746,30.0,185.09,185.08,87.86043178]
[1734682832747,104.30866144,185.09,185.08,87.86043178]
[1734682832947,40.26588872,185.09,185.08,18.69739168]
[1734682833148,40.26588872,185.09,185.03,162.57096039]
[1734682833359,40.26588872,185.04,185.03,162.57096039]
[1734682833574,80.53177744,185.04,185.03,162.57096039]
[1734682833766,126.25088633,185.04,185.03,162.57096039]
[1734682833962,27.78538031,185.02,184.99,4.521e-05]
[1734682834170,67.35785018,185.0,184.99,4.521e-05]
[1734682834468,67.35785018,185.0,184.9,0.75055659]
[1734682834469,27.09196146,185.0,184.9,0.75055659]
[1734682834681,27.09196146,185.0,184.78,5.0]
[1734682834682,27.44869785,184.98,184.78,5.0]
[1734682834880,27.72851385,184.81,184.38,6.1474]
[1734682835169,40.26588872,184.72,184.56,40.26588872]
[1734682835346,1.01572409,184.71,184.5,53.81598872]
[1734682835547,14.76971183,184.57,184.41,3.27449431]
[1734682835752,14.76971183,184.52,184.49,40.26588872]
[1734682835962,9.41103635,184.56,184.51,40.26588872]
[1734682836163,29.53942367,184.59,184.55,352.26588872]
[1734682836367,40.26588872,184.83,184.55,276.96899998]
[1734682836551,27.72851385,184.81,184.72,40.26588872]
[1734682836750,27.39329003,184.79,184.51,3.18453746]
[1734682836947,27.77583135,184.77,184.51,3.18453746]
[1734682837175,27.50428515,184.75,184.51,3.18453746]
[1734682837471,27.02476913,184.73,184.59,312.0]
[1734682837653,21.01549809,184.72,184.27,30.0]
[1734682837850,21.01549809,184.72,184.29,27.26667563]
[1734682837851,40.26588872,184.62,184.29,27.26667563]
[1734682838068,1.01622613,184.61,184.51,40.26588872]
[1734682838272,1.01622613,184.61,184.41,40.26588872]
[1734682838273,1.01622613,184.61,184.53,40.26588872]
[1734682838455,7.29422988,184.56,184.53,40.26588872]
[1734682838649,7.29422988,184.62,184.55,40.26588872]
[1734682838869,3.85402988,184.62,184.51,0.12549]
[1734682839074,88.90663606,184.75,184.61,40.39137872]
[1734682839075,1.0152757,184.74,184.61,40.39137872]
[1734682839275,8.698,184.74,184.47,16.17]
[1734682839586,37.1162,184.74,184.42,40.26588872]
[1734682839765,40.26588872,184.69,184.53,40.26588872]
[1734682839951,40.26588872,184.8,184.65,40.26588872]
[1734682840274,22.99166788,184.99,184.55,40.26588872]
[1734682840275,40.26588872,184.69,184.55,40.26588872]
[1734682840474,3.17013075,184.92,184.6,3.18443551]
[1734682840661,40.26588872,184.88,184.85,312.0]
[1734682840861,39.4142878,184.97,184.85,297.71605954]
[1734682841067,39.4142878,184.97,184.85,257.45017082]
[1734682841267,39.4142878,184.97,184.83,40.26588872]
[1734682841469,3.21648235,185.08,184.86,20.0]
[1734682841774,48.71666003,185.12,184.79,40.5865]
[1734682841775,40.26588872,185.09,184.98,20.0]
[1734682842159,40.26588872,185.07,184.95,352.26588872]
[1734682842475,80.53177744,184.96,184.7,13.5348]
[1734682842690,28.3614,185.11,184.7,13.5348]
[1734682842691,28.3614,185.11,184.75,40.26588872]
[1734682842863,3.29510748,184.98,184.83,0.12549]
[1734682843066,34.93882296,185.26,184.88,0.12549]
[1734682843067,21.626806,185.13,184.88,0.12549]
[1734682843268,18.8962,185.23,184.84,6.3626]
[1734682843476,3.28178669,185.12,184.84,6.3626]
[1734682843780,21.626652,185.18,184.85,57.08181807]
[1734682843986,9.4482,185.22,184.86,30.0]
[1734682844280,40.26588872,185.14,185.03,23.776884]
[1734682844478,40.26588872,185.04,184.92,40.26588872]
[1734682844776,3.32324858,185.17,184.93,23.776884]
[1734682844977,10.7887,185.27,184.89,20.0]
[1734682845183,21.617565,185.22,184.91,30.0]
[1734682845359,21.617565,185.22,184.96,40.5492]
[1734682845562,3.31026333,185.26,185.04,3.20021339]
[1734682845757,1.3426,185.27,184.96,25.0731759]
[1734682845951,1.3426,185.27,184.97,30.0]
[1734682846160,1.3426,185.27,185.18,40.26588872]
[1734682846583,41.60848872,185.27,185.16,40.26588872]
[1734682846759,1.3426,185.27,185.23,40.26588872]
[1734682846965,1.3426,185.27,185.25,40.26588872]
[1734682847270,0.0001,185.27,185.25,40.26588872]
[1734682847566,40.26588872,185.46,185.29,20.0]
[1734682847783,40.26588872,185.46,185.36,40.26588872]
[1734682848099,40.26588872,185.48,185.38,40.26588872]
[1734682848259,26.24313281,185.66,185.38,40.26588872]
[1734682848464,40.26588872,185.53,185.42,40.26588872]
[1734682848684,40.26588872,185.53,185.32,0.12549]
[1734682848685,40.26588872,185.57,185.46,40.26588872]
[1734682848877,40.26588872,185.6,185.5,40.26588872]
[1734682849186,40.26588872,185.62,185.52,40.26588872]
[1734682849559,3.24987516,185.64,185.56,40.26588872]
[1734682849761,40.26588872,185.68,185.58,40.26588872]
[1734682850473,40.26588872,185.61,185.47,13.4788]
[1734682850667,3.31888358,185.69,185.54,40.26588872]
[1734682850885,40.26588872,185.61,185.52,40.26588872]
[1734682851084,40.26588872,185.59,185.5,40.26588872]
[1734682851307,40.26588872,185.53,185.4,3.3068962]
[1734682851472,0.12549,185.64,185.23,270.64680487]
[1734682851671,20.0,185.62,185.35,3.28120098]
[1734682851873,0.12549,185.61,185.23,6.4739]
[1734682852084,20.0,185.54,185.32,3.29575678]
[1734682852281,23.776884,185.53,185.32,3.29575678]
[1734682852485,40.26588872,185.51,185.41,18.32599614]
[1734682852694,40.26588872,185.47,185.36,40.26588872]
[1734682852897,40.26588872,185.45,185.36,40.26588872]
[1734682853277,40.26588872,185.43,185.32,40.26588872]
[1734682853480,40.26588872,185.36,185.27,40.26588872]
[1734682853695,40.26588872,185.34,185.25,40.26588872]
[1734682853987,23.776884,185.35,185.25,40.26588872]
[1734682853988,40.26588872,185.35,185.25,40.26588872]
[1734682854175,23.776884,185.36,185.19,13.4995]
[1734682854371,40.26588872,185.38,185.29,40.26588872]
[1734682854576,23.776884,185.37,185.29,40.26588872]
[1734682854776,40.26588872,185.38,185.29,40.26588872]
[1734682855275,40.26588872,185.36,185.27,40.26588872]
[1734682855469,40.26588872,185.32,185.23,40.26588872]
[1734682855673,40.26588872,185.33,185.24,40.26588872]
[1734682856081,23.776884,185.37,185.2,40.26588872]
[1734682856082,40.26588872,185.29,185.2,40.26588872]
[1734682856286,40.26588872,185.31,185.22,40.26588872]
[1734682856502,40.26588872,185.33,185.24,40.26588872]
[1734682856700,23.776884,185.37,185.22,40.26588872]
[1734682856701,40.26588872,185.31,185.22,40.26588872]
[1734682856875,40.26588872,185.29,185.19,40.26588872]
[1734682857279,40.26588872,185.31,185.23,40.26588872]
[1734682857479,40.26588872,185.33,185.23,40.26588872]
[1734682857701,40.26588872,185.33,185.25,40.26588872]
[1734682857895,30.0,185.67,185.31,80.53177744]
[1734682858114,40.26588872,185.4,185.15,13.5025]
[1734682858307,40.26588872,185.25,185.16,70.26588872]
[1734682858477,40.26588872,185.3,185.13,3.18446376]
[1734682858683,270.64680487,185.6,185.28,40.26588872]
[1734682858989,3.30113453,185.46,185.14,6.5147]
[1734682859382,3.30113453,185.46,185.15,0.12549]
[1734682859597,13.4769,185.51,185.17,23.902374]
[1734682859930,40.26588872,185.46,185.37,40.26588872]
[1734682860802,0.12549,185.43,185.33,40.26588872]
[1734682860990,40.26588872,185.44,185.33,40.26588872]
[1734682861175,40.26588872,185.5,185.39,40.26588872]
[1734682861375,40.26588872,185.56,185.45,40.26588872]
[1734682861687,13.469,185.62,185.4,40.26588872]
[1734682861873,40.26588872,185.53,185.44,40.26588872]
[1734682862080,40.26588872,185.48,185.38,40.26588872]
[1734682862288,0.12549,185.59,185.36,40.26588872]
[1734682862483,40.26588872,185.53,185.43,40.26588872]
[1734682862701,40.26588872,185.55,185.45,40.26588872]
[1734682863391,13.4705,185.59,185.37,40.26588872]
[1734682863392,40.26588872,185.47,185.37,40.26588872]
[1734682863600,40.26588872,185.45,185.35,40.26588872]
[1734682863805,40.26588872,185.47,185.38,40.26588872]
[1734682864014,40.26588872,185.51,185.42,40.26588872]
[1734682864309,40.26588872,185.53,185.44,40.26588872]
[1734682864519,40.26588872,185.47,185.38,40.26588872]
[1734682864688,40.26588872,185.47,185.19,270.64680487]
[1734682864689,40.26588872,185.43,185.34,40.26588872]
[1734682865583,40.26588872,185.39,185.32,40.26588872]
[1734682865799,40.26588872,185.43,185.34,40.26588872]
[1734682865994,40.26588872,185.45,185.36,40.26588872]
[1734682866191,40.26588872,185.4,185.3,40.26588872]
[1734682866404,23.902374,185.31,185.2,40.26588872]
[1734682866613,23.902374,185.31,185.11,2.1831]
[1734682866614,23.776884,185.31,185.13,3.16187993]
[1734682867006,23.776884,185.27,185.11,13.5048]
[1734682867197,23.776884,185.23,185.03,6.5724]
[1734682867588,64.04277272,185.23,185.15,40.26588872]
[1734682867899,40.26588872,185.27,185.19,40.26588872]
[1734682868206,40.26588872,185.4,185.21,40.26588872]
[1734682868207,40.26588872,185.29,185.21,40.26588872]
[1734682868408,40.26588872,185.29,185.11,3.231532]
[1734682868409,40.26588872,185.25,185.17,40.26588872]
[1734682868615,40.26588872,185.23,185.15,40.26588872]
[1734682868983,40.26588872,185.23,185.14,40.26588872]
[1734682869401,40.26588872,185.27,185.18,40.26588872]
[1734682869600,32.3129,185.53,185.22,40.26588872]
[1734682869601,40.26588872,185.31,185.22,40.26588872]
[1734682869805,40.26588872,185.31,185.24,40.26588872]
[1734682870008,40.26588872,185.33,185.26,40.26588872]
[1734682870217,40.26588872,185.35,185.28,40.26588872]
[1734682870396,40.26588872,185.35,185.26,40.26588872]
[1734682870591,40.26588872,185.33,185.24,40.26588872]
[1734682870792,40.26588872,185.31,185.22,40.26588872]
[1734682871111,40.26588872,185.28,185.19,40.26588872]
[1734682871315,40.26588872,185.3,185.23,40.26588872]
[1734682871522,1.01200345,185.39,185.25,40.26588872]